[Event "MČR juniorů a juniorek v rapid šachu 2023"]
[Site "Czech Republic"]
[Date "2023.09.23"]
[Round "2.14"]
[White "Boff, Ondrej"]
[Black "Garabik, Marek"]
[Result "0-1"]
[TimeControl "20 min + 5 sec per move"]
[WhiteFideId "23733950"]
[BlackFideId "23717742"]
[WhiteElo "1486"]
[BlackElo "1787"]

1. e4 {[%clk 00:20:08]} {[%emt 00:02:13]} e6 {[%clk 00:20:09]} {[%emt
00:00:04]} 2. d4 {[%clk 00:20:11]} {[%emt 00:00:01]} d5 {[%clk 00:20:13]}
{[%emt 00:00:02]} 3. Bd3 {[%clk 00:20:15]} c5 {[%clk 00:18:40]} {[%emt
00:01:38]} 4. c3 {[%clk 00:20:08]} {[%emt 00:00:11]} Nc6 {[%clk 00:18:43]}
{[%emt 00:00:03]} 5. Ne2 {[%clk 00:20:07]} {[%emt 00:00:05]} cxd4 {[%clk
00:17:42]} {[%emt 00:01:07]} 6. cxd4 {[%clk 00:19:58]} {[%emt 00:00:13]} dxe4
{[%clk 00:17:41]} {[%emt 00:00:06]} 7. Bxe4 {[%clk 00:19:58]} {[%emt 00:00:05]}
Nf6 {[%clk 00:17:42]} {[%emt 00:00:05]} 8. Bf3 {[%clk 00:19:58]} {[%emt
00:00:04]} Bb4+ {[%clk 00:17:17]} {[%emt 00:00:31]} 9. Bd2 {[%clk 00:19:41]}
{[%emt 00:00:20]} Bxd2+ {[%clk 00:17:10]} {[%emt 00:00:13]} 10. Qxd2 {[%clk
00:19:40]} {[%emt 00:00:05]} O-O {[%clk 00:16:46]} {[%emt 00:00:30]} 11. O-O
{[%clk 00:19:41]} {[%emt 00:00:05]} Ne7 {[%clk 00:16:49]} {[%emt 00:00:02]} 12.
Nbc3 {[%clk 00:19:22]} {[%emt 00:00:23]} Ned5 {[%clk 00:14:46]} {[%emt
00:02:09]} 13. Nc1 {[%clk 00:17:45]} {[%emt 00:01:41]} b6 {[%clk 00:13:39]}
{[%emt 00:01:12]} 14. Nd3 {[%clk 00:16:38]} {[%emt 00:01:12]} Ba6 {[%clk
00:12:19]} {[%emt 00:01:26]} 15. Rfd1 {[%clk 00:14:12]} {[%emt 00:02:28]} Rc8
{[%clk 00:10:00]} {[%emt 00:02:26]} 16. Ne5 {[%clk 00:13:19]} {[%emt 00:00:56]}
Bb7 {[%clk 00:06:07]} {[%emt 00:04:01]} 17. Rac1 {[%clk 00:12:16]} {[%emt
00:01:08]} Ba8 {[%clk 00:05:36]} {[%emt 00:00:37]} 18. h3 {[%clk 00:10:55]}
{[%emt 00:01:25]} Nxc3 {[%clk 00:04:56]} {[%emt 00:00:46]} 19. bxc3 {[%clk
00:10:45]} {[%emt 00:00:14]} Bxf3 {[%clk 00:04:33]} {[%emt 00:00:28]} 20. Nxf3
{[%clk 00:10:46]} {[%emt 00:00:03]} Qc7 {[%clk 00:04:37]} {[%emt 00:00:02]} 21.
Qd3 {[%clk 00:08:08]} {[%emt 00:02:42]} Qc4 {[%clk 00:03:19]} {[%emt 00:01:24]}
22. Qxc4 {[%clk 00:07:58]} {[%emt 00:00:16]} Rxc4 {[%clk 00:03:22]} {[%emt
00:00:01]} 23. Ne5 {[%clk 00:08:00]} {[%emt 00:00:03]} Ra4 {[%clk 00:03:15]}
{[%emt 00:00:13]} 24. Rd2 {[%clk 00:07:49]} {[%emt 00:00:15]} Rc8 {[%clk
00:02:53]} {[%emt 00:00:28]} 25. Kf1 {[%clk 00:07:26]} {[%emt 00:00:26]} Ne4
{[%clk 00:02:16]} {[%emt 00:00:43]} 26. Rdc2 {[%clk 00:07:19]} {[%emt
00:00:12]} f6 {[%clk 00:02:06]} {[%emt 00:00:15]} 27. Nd3 {[%clk 00:07:13]}
{[%emt 00:00:10]} Rac4 {[%clk 00:01:28]} {[%emt 00:00:44]} 28. f3 {[%clk
00:06:46]} {[%emt 00:00:32]} Nxc3 {[%clk 00:01:01]} {[%emt 00:00:33]} 29. Nb2
{[%clk 00:06:35]} {[%emt 00:00:15]} R4c7 {[%clk 00:01:03]} {[%emt 00:00:04]} 30.
Nd1 {[%clk 00:06:30]} {[%emt 00:00:10]} Nb5 {[%clk 00:01:07]} {[%emt 00:00:01]}
31. Rxc7 {[%clk 00:06:07]} {[%emt 00:00:27]} Rxc7 {[%clk 00:01:12]} {[%emt
00:00:01]} 32. Rxc7 {[%clk 00:06:06]} {[%emt 00:00:05]} Nxc7 {[%clk 00:01:16]}
{[%emt 00:00:02]} 33. Ke2 {[%clk 00:06:09]} {[%emt 00:00:02]} Kf7 {[%clk
00:01:20]} 34. Kd3 {[%clk 00:06:12]} {[%emt 00:00:01]} Ke7 {[%clk 00:01:25]} 35.
Kc4 {[%clk 00:06:16]} {[%emt 00:00:03]} Kd6 {[%clk 00:01:29]} 36. Nc3 {[%clk
00:06:16]} {[%emt 00:00:05]} a6 {[%clk 00:01:23]} {[%emt 00:00:12]} 37. f4
{[%clk 00:06:11]} {[%emt 00:00:09]} b5+ {[%clk 00:01:11]} {[%emt 00:00:17]} 38.
Kb4 {[%clk 00:06:07]} {[%emt 00:00:08]} Nd5+ {[%clk 00:01:16]} {[%emt
00:00:02]} 39. Kb3 {[%clk 00:05:35]} {[%emt 00:00:36]} Nxf4 {[%clk 00:01:13]}
{[%emt 00:00:07]} 40. a4 {[%clk 00:05:31]} {[%emt 00:00:09]} bxa4+ {[%clk
00:01:15]} {[%emt 00:00:03]} 41. Kxa4 {[%clk 00:05:34]} {[%emt 00:00:02]} Nxg2
{[%clk 00:01:17]} {[%emt 00:00:03]} 42. Kb4 {[%clk 00:05:37]} {[%emt 00:00:02]}
Nf4 {[%clk 00:01:20]} {[%emt 00:00:03]} 43. h4 {[%clk 00:05:40]} {[%emt
00:00:01]} Nd5+ {[%clk 00:01:24]} 0-1

[Event "MČR juniorů a juniorek v rapid šachu 2023"]
[Site "Czech Republic"]
[Date "2023.09.23"]
[Round "2.15"]
[White "Rucabado, Stefan"]
[Black "Dobsa, Emma"]
[Result "0-1"]
[TimeControl "20 min + 5 sec per move"]
[WhiteFideId "23730315"]
[BlackFideId "23709391"]
[WhiteElo "1782"]
[BlackElo "1480"]

1. e4 {[%clk 00:20:08]} {[%emt 00:00:01]} e5 {[%clk 00:20:09]} {[%emt
00:00:01]} 2. Nf3 {[%clk 00:20:11]} Nc6 {[%clk 00:20:14]} {[%emt 00:00:02]} 3.
Bc4 {[%clk 00:20:15]} Bc5 {[%clk 00:20:18]} {[%emt 00:00:02]} 4. c3 {[%clk
00:20:19]} Nf6 {[%clk 00:20:22]} 5. d3 {[%clk 00:20:23]} O-O {[%clk 00:20:25]}
{[%emt 00:00:02]} 6. O-O {[%clk 00:20:27]} {[%emt 00:00:02]} d5 {[%clk
00:20:29]} 7. exd5 {[%clk 00:20:30]} {[%emt 00:00:02]} Nxd5 {[%clk 00:20:33]}
{[%emt 00:00:01]} 8. Re1 {[%clk 00:20:33]} {[%emt 00:00:02]} Bg4 {[%clk
00:20:35]} {[%emt 00:00:02]} 9. h3 {[%clk 00:20:34]} {[%emt 00:00:04]} Bh5
{[%clk 00:20:38]} {[%emt 00:00:02]} 10. Nbd2 {[%clk 00:20:33]} {[%emt
00:00:06]} Nb6 {[%clk 00:20:22]} {[%emt 00:00:22]} 11. Bb5 {[%clk 00:20:12]}
{[%emt 00:00:26]} Bd6 {[%clk 00:20:14]} {[%emt 00:00:13]} 12. Ne4 {[%clk
00:19:14]} {[%emt 00:01:03]} Re8 {[%clk 00:17:34]} {[%emt 00:02:44]} 13. Ng3
{[%clk 00:16:38]} {[%emt 00:02:41]} Bg6 {[%clk 00:17:25]} {[%emt 00:00:15]} 14.
Ne4 {[%clk 00:12:02]} {[%emt 00:04:41]} f5 {[%clk 00:15:07]} {[%emt 00:02:23]}
15. Nxd6 {[%clk 00:09:30]} {[%emt 00:02:36]} cxd6 {[%clk 00:14:23]} {[%emt
00:00:50]} 16. Bg5 {[%clk 00:07:44]} {[%emt 00:01:50]} Qd7 {[%clk 00:12:51]}
{[%emt 00:01:37]} 17. d4 {[%clk 00:04:18]} {[%emt 00:03:31]} e4 {[%clk
00:11:00]} {[%emt 00:01:57]} 18. Nd2 {[%clk 00:02:54]} {[%emt 00:01:29]} d5
{[%clk 00:09:49]} {[%emt 00:01:15]} 19. Nb3 {[%clk 00:02:28]} {[%emt 00:00:31]}
Qf7 {[%clk 00:08:49]} {[%emt 00:01:05]} 20. Nc5 {[%clk 00:02:03]} {[%emt
00:00:31]} Bh5 {[%clk 00:08:21]} {[%emt 00:00:33]} 21. Qc1 {[%clk 00:01:32]}
{[%emt 00:00:36]} a6 {[%clk 00:07:56]} {[%emt 00:00:29]} 22. Be2 {[%clk
00:01:20]} {[%emt 00:00:17]} h6 {[%clk 00:07:05]} {[%emt 00:00:57]} 23. Bf4
{[%clk 00:01:04]} {[%emt 00:00:21]} Bxe2 {[%clk 00:06:55]} {[%emt 00:00:14]} 24.
Rxe2 {[%clk 00:01:08]} Qh5 {[%clk 00:06:58]} {[%emt 00:00:02]} 25. Qe1 {[%clk
00:00:50]} {[%emt 00:00:23]} g5 {[%clk 00:06:37]} {[%emt 00:00:26]} 26. Bh2
{[%clk 00:00:37]} {[%emt 00:00:18]} Re7 {[%clk 00:06:21]} {[%emt 00:00:21]} 27.
f4 {[%clk 00:00:23]} {[%emt 00:00:20]} gxf4 {[%clk 00:03:59]} {[%emt 00:02:26]}
28. Bxf4 {[%clk 00:00:27]} {[%emt 00:00:01]} Kh7 {[%clk 00:03:23]} {[%emt
00:00:41]} 29. Qf2 {[%clk 00:00:21]} {[%emt 00:00:11]} Rg8 {[%clk 00:03:01]}
{[%emt 00:00:28]} 30. Kh2 {[%clk 00:00:25]} Nd8 {[%clk 00:02:19]} {[%emt
00:00:45]} 31. Rf1 {[%clk 00:00:21]} {[%emt 00:00:09]} Rf7 {[%clk 00:01:50]}
{[%emt 00:00:35]} 32. b3 {[%clk 00:00:25]} {[%emt 00:00:02]} Nc8 {[%clk
00:01:29]} {[%emt 00:00:25]} 33. c4 {[%clk 00:00:21]} {[%emt 00:00:09]} Nb6
{[%clk 00:00:55]} {[%emt 00:00:40]} 34. Rc1 {[%clk 00:00:14]} {[%emt 00:00:12]}
Rfg7 {[%clk 00:00:38]} {[%emt 00:00:22]} 35. Rg1 {[%clk 00:00:09]} {[%emt
00:00:10]} dxc4 {[%clk 00:00:42]} {[%emt 00:00:02]} 36. Be5 {[%clk 00:00:12]}
{[%emt 00:00:02]} Rf7 {[%clk 00:00:41]} {[%emt 00:00:06]} 37. Rb1 {[%clk
00:00:10]} {[%emt 00:00:07]} c3 {[%clk 00:00:36]} {[%emt 00:00:10]} 38. Bf4
{[%clk 00:00:13]} {[%emt 00:00:02]} Nd5 {[%clk 00:00:38]} {[%emt 00:00:03]} 39.
Rc1 {[%clk 00:00:12]} {[%emt 00:00:07]} Rfg7 {[%clk 00:00:41]} {[%emt
00:00:01]} 40. g3 {[%clk 00:00:14]} {[%emt 00:00:02]} Nxf4 {[%clk 00:00:32]}
{[%emt 00:00:15]} 41. gxf4 {[%clk 00:00:18]} Rg3 {[%clk 00:00:24]} {[%emt
00:00:13]} 42. Qf1 {[%clk 00:00:18]} {[%emt 00:00:05]} Rxh3+ {[%clk 00:00:23]}
{[%emt 00:00:05]} 43. Qxh3 {[%clk 00:00:08]} {[%emt 00:00:16]} Qxe2+ {[%clk
00:00:27]} {[%emt 00:00:01]} 44. Kh1 {[%clk 00:00:12]} Qf3+ {[%clk 00:00:11]}
{[%emt 00:00:21]} 45. Qxf3 {[%clk 00:00:08]} {[%emt 00:00:08]} exf3 {[%clk
00:00:15]} {[%emt 00:00:02]} 46. Rf1 {[%clk 00:00:12]} {[%emt 00:00:01]} Nc6
{[%clk 00:00:15]} {[%emt 00:00:04]} 47. Rxf3 {[%clk 00:00:14]} {[%emt
00:00:03]} c2 {[%clk 00:00:13]} {[%emt 00:00:07]} 48. Rc3 {[%clk 00:00:18]}
Nxd4 {[%clk 00:00:17]} {[%emt 00:00:02]} 49. Nxb7 {[%clk 00:00:15]} {[%emt
00:00:08]} Re8 {[%clk 00:00:17]} {[%emt 00:00:03]} 50. Kg2 {[%clk 00:00:15]}
{[%emt 00:00:06]} Re2+ {[%clk 00:00:16]} {[%emt 00:00:06]} 51. Kf1 {[%clk
00:00:17]} {[%emt 00:00:03]} Rd2 {[%clk 00:00:19]} {[%emt 00:00:03]} 52. Rc7+
{[%clk 00:00:08]} {[%emt 00:00:14]} Kg6 {[%clk 00:00:23]} 0-1

[Event "MČR juniorů a juniorek v rapid šachu 2023"]
[Site "Czech Republic"]
[Date "2023.09.23"]
[Round "2.17"]
[White "Bezdek, Tomas"]
[Black "Simunek, Jakub Simon"]
[Result "1/2-1/2"]
[TimeControl "20 min + 5 sec per move"]
[WhiteFideId "23733551"]
[BlackFideId "23709464"]
[WhiteElo "1933"]
[BlackElo "1843"]

1. e4 {[%clk 00:20:05]} {[%emt 00:09:55]} e6 {[%clk 00:20:05]} {[%emt
00:00:03]} 2. d4 {[%clk 00:20:05]} {[%emt 00:00:03]} d5 {[%clk 00:20:05]} 3. e5
{[%clk 00:20:05]} {[%emt 00:00:02]} c5 {[%clk 00:20:05]} {[%emt 00:00:02]} 4.
c3 {[%clk 00:20:05]} {[%emt 00:00:01]} Nc6 {[%clk 00:20:05]} 5. Nf3 {[%emt
00:00:02]} Bd7 6. Bd3 {[%clk 00:20:09]} {[%emt 00:00:03]} cxd4 {[%clk
00:20:05]} {[%emt 00:00:07]} 7. O-O {[%clk 00:19:14]} {[%emt 00:01:00]} dxc3
{[%clk 00:19:18]} {[%emt 00:00:53]} 8. Nxc3 {[%clk 00:19:01]} {[%emt 00:00:17]}
Nge7 {[%clk 00:19:17]} {[%emt 00:00:06]} 9. Bg5 {[%clk 00:18:05]} {[%emt
00:01:01]} a6 {[%clk 00:18:19]} {[%emt 00:01:04]} 10. Qe2 {[%clk 00:17:08]}
{[%emt 00:01:02]} h6 {[%clk 00:15:35]} {[%emt 00:02:48]} 11. Be3 {[%clk
00:14:48]} {[%emt 00:02:25]} d4 {[%clk 00:12:40]} {[%emt 00:03:00]} 12. Bxd4
{[%clk 00:12:12]} {[%emt 00:02:41]} Nxd4 {[%clk 00:12:30]} {[%emt 00:00:15]} 13.
Nxd4 {[%clk 00:12:15]} {[%emt 00:00:02]} Nc6 {[%clk 00:12:14]} {[%emt
00:00:21]} 14. Nf3 {[%clk 00:10:41]} {[%emt 00:01:40]} Be7 {[%clk 00:11:07]}
{[%emt 00:01:11]} 15. Rfd1 {[%clk 00:10:30]} {[%emt 00:00:15]} Qb6 {[%clk
00:07:17]} {[%emt 00:03:56]} 16. Rd2 {[%clk 00:07:41]} {[%emt 00:02:54]} Nb4
{[%clk 00:04:25]} {[%emt 00:02:58]} 17. Be4 {[%clk 00:05:08]} {[%emt 00:02:37]}
Bc6 {[%clk 00:04:18]} {[%emt 00:00:12]} 18. Rad1 {[%clk 00:02:20]} {[%emt
00:02:53]} Bxe4 {[%clk 00:03:04]} {[%emt 00:01:20]} 19. Qxe4 {[%clk 00:02:09]}
{[%emt 00:00:15]} O-O {[%clk 00:02:46]} {[%emt 00:00:22]} 20. Qg4 {[%clk
00:00:38]} {[%emt 00:01:37]} Rfd8 {[%emt 00:00:55]} 21. Rxd8+ {[%clk 00:00:18]}
{[%emt 00:00:24]} Rxd8 {[%clk 00:02:01]} {[%emt 00:00:01]} 22. Rxd8+ {[%clk
00:00:20]} {[%emt 00:00:04]} Qxd8 {[%clk 00:01:37]} {[%emt 00:00:29]} 23. Qd4
{[%clk 00:00:23]} {[%emt 00:00:01]} Qc7 {[%clk 00:01:11]} {[%emt 00:00:32]} 24.
a3 {[%clk 00:00:19]} {[%emt 00:00:08]} Nd5 {[%clk 00:00:52]} {[%emt 00:00:24]}
25. a4 {[%clk 00:00:11]} {[%emt 00:00:13]} Qc6 {[%clk 00:00:09]} {[%emt
00:00:48]} 26. h3 {[%clk 00:00:12]} {[%emt 00:00:04]} Bc5 {[%clk 00:00:12]}
{[%emt 00:00:02]} 27. Qd3 {[%clk 00:00:07]} {[%emt 00:00:10]} Nf4 {[%clk
00:00:08]} {[%emt 00:00:10]} 28. Qc2 {[%clk 00:00:10]} {[%emt 00:00:02]} Qb6
{[%clk 00:00:10]} {[%emt 00:00:02]} 29. Kf1 {[%clk 00:00:11]} {[%emt 00:00:04]}
Nd5 {[%clk 00:00:08]} {[%emt 00:00:07]} 30. Nxd5 exd5 {[%clk 00:00:12]} 31. Ne1
{[%clk 00:00:17]} {[%emt 00:00:02]} Bd4 {[%clk 00:00:15]} {[%emt 00:00:02]} 32.
Nd3 {[%clk 00:00:20]} {[%emt 00:00:02]} Qa5 {[%clk 00:00:09]} {[%emt 00:00:11]}
33. Qc8+ {[%clk 00:00:23]} {[%emt 00:00:02]} Kh7 {[%clk 00:00:13]} 34. Qf5+
{[%clk 00:00:27]} Kg8 {[%clk 00:00:14]} {[%emt 00:00:04]} 35. Qc8+ {[%clk
00:00:31]} {[%emt 00:00:01]} Kh7 {[%clk 00:00:19]} 1/2-1/2

[Event "MČR juniorů a juniorek v rapid šachu 2023"]
[Site "Czech Republic"]
[Date "2023.09.23"]
[Round "2.19"]
[White "Dudkova, Josefina"]
[Black "Stejskal, Michal"]
[Result "0-1"]
[TimeControl "20 min + 5 sec per move"]
[WhiteFideId "23712350"]
[BlackFideId "398195"]
[WhiteElo "1437"]
[BlackElo "1959"]

1. d4 {[%clk 00:20:07]} {[%emt 00:00:03]} Nf6 {[%clk 00:20:08]} {[%emt
00:00:02]} 2. Bf4 {[%clk 00:20:10]} {[%emt 00:00:02]} d5 {[%clk 00:20:10]}
{[%emt 00:00:03]} 3. Nf3 {[%clk 00:20:10]} {[%emt 00:00:05]} c5 {[%clk
00:20:13]} {[%emt 00:00:02]} 4. e3 {[%clk 00:19:49]} {[%emt 00:00:25]} Nc6
{[%clk 00:20:15]} {[%emt 00:00:02]} 5. c3 {[%clk 00:19:52]} {[%emt 00:00:03]}
Qb6 {[%clk 00:20:04]} {[%emt 00:00:16]} 6. Qc1 {[%clk 00:18:47]} {[%emt
00:01:10]} Bf5 {[%clk 00:19:51]} {[%emt 00:00:17]} 7. Nbd2 {[%clk 00:18:11]}
{[%emt 00:00:42]} Rc8 {[%clk 00:19:52]} {[%emt 00:00:04]} 8. dxc5 {[%clk
00:16:31]} {[%emt 00:01:44]} Qxc5 {[%clk 00:19:46]} {[%emt 00:00:12]} 9. Nb3
{[%clk 00:16:29]} {[%emt 00:00:08]} Qb6 {[%clk 00:19:48]} {[%emt 00:00:03]} 10.
Nbd4 {[%clk 00:15:28]} {[%emt 00:01:06]} Bg6 {[%clk 00:19:34]} {[%emt
00:00:19]} 11. Qd2 {[%clk 00:15:00]} {[%emt 00:00:33]} Ne4 {[%clk 00:19:24]}
{[%emt 00:00:15]} 12. Qc1 {[%clk 00:12:31]} {[%emt 00:02:34]} e6 {[%clk
00:18:55]} {[%emt 00:00:33]} 13. Nxc6 {[%clk 00:11:29]} {[%emt 00:01:08]} bxc6
{[%clk 00:18:56]} {[%emt 00:00:03]} 14. Be2 {[%clk 00:10:50]} {[%emt 00:00:43]}
Be7 {[%clk 00:18:47]} {[%emt 00:00:14]} 15. O-O {[%clk 00:10:49]} {[%emt
00:00:07]} O-O {[%clk 00:18:48]} {[%emt 00:00:03]} 16. Ne5 {[%clk 00:10:24]}
{[%emt 00:00:30]} Rfd8 {[%clk 00:18:21]} {[%emt 00:00:32]} 17. b3 {[%clk
00:09:35]} {[%emt 00:00:55]} c5 {[%clk 00:18:06]} {[%emt 00:00:19]} 18. Rd1
{[%clk 00:08:50]} {[%emt 00:00:50]} Bf6 {[%clk 00:16:45]} {[%emt 00:01:26]} 19.
f3 {[%clk 00:07:53]} {[%emt 00:01:02]} Nd6 {[%clk 00:16:37]} {[%emt 00:00:12]}
20. Qa3 {[%clk 00:07:22]} {[%emt 00:00:36]} c4 {[%clk 00:15:35]} {[%emt
00:01:07]} 21. Nxg6 {[%clk 00:05:51]} {[%emt 00:01:36]} hxg6 {[%clk 00:15:32]}
{[%emt 00:00:08]} 22. Bxd6 {[%clk 00:03:36]} {[%emt 00:02:21]} Rxd6 {[%clk
00:15:34]} {[%emt 00:00:02]} 23. bxc4 {[%clk 00:02:26]} {[%emt 00:01:16]} Qxe3+
{[%clk 00:15:13]} {[%emt 00:00:25]} 24. Kf1 {[%clk 00:02:30]} {[%emt 00:00:02]}
Rdc6 {[%clk 00:14:57]} {[%emt 00:00:21]} 25. Rd3 {[%clk 00:02:04]} {[%emt
00:00:31]} Qb6 {[%clk 00:14:34]} {[%emt 00:00:29]} 26. Rd2 {[%clk 00:01:15]}
{[%emt 00:00:55]} dxc4 {[%clk 00:13:04]} {[%emt 00:01:35]} 27. Rad1 {[%clk
00:01:07]} {[%emt 00:00:13]} Qe3 {[%clk 00:10:26]} {[%emt 00:02:42]} 28. Rd7
{[%clk 00:00:48]} {[%emt 00:00:25]} R8c7 {[%clk 00:09:30]} {[%emt 00:01:01]} 29.
Rd8+ {[%clk 00:00:21]} {[%emt 00:00:32]} Bxd8 {[%clk 00:09:15]} {[%emt
00:00:20]} 30. Rxd8+ {[%clk 00:00:24]} {[%emt 00:00:02]} Kh7 {[%clk 00:09:19]}
31. Qf8 {[%clk 00:00:20]} {[%emt 00:00:09]} g5 {[%clk 00:09:22]} {[%emt
00:00:02]} 32. g4 {[%clk 00:00:10]} {[%emt 00:00:15]} Rb6 {[%clk 00:08:38]}
{[%emt 00:00:50]} 33. Qh8+ {[%clk 00:00:06]} {[%emt 00:00:09]} Kg6 {[%clk
00:08:40]} {[%emt 00:00:03]} 34. Rg8 {[%clk 00:00:07]} {[%emt 00:00:04]} Rb1+
{[%clk 00:08:42]} {[%emt 00:00:02]} 35. Kg2 {[%clk 00:00:09]} {[%emt 00:00:03]}
Qxe2+ {[%clk 00:08:42]} {[%emt 00:00:05]} 36. Kg3 {[%clk 00:00:08]} {[%emt
00:00:07]} Rg1+ {[%clk 00:08:44]} {[%emt 00:00:02]} 0-1

[Event "MČR juniorů a juniorek v rapid šachu 2023"]
[Site "Czech Republic"]
[Date "2023.09.23"]
[Round "2.20"]
[White "Tegda, Vojtech"]
[Black "Jun, Robert"]
[Result "1/2-1/2"]
[TimeControl "20 min + 5 sec per move"]
[WhiteFideId "23723424"]
[BlackFideId "23709510"]
[WhiteElo "1959"]
[BlackElo "1340"]

1. e4 {[%clk 00:20:08]} {[%emt 00:00:01]} c5 {[%clk 00:20:09]} 2. c4 {[%clk
00:20:12]} {[%emt 00:00:01]} e6 {[%clk 00:20:13]} 3. Ne2 {[%clk 00:20:16]}
{[%emt 00:00:01]} Nf6 {[%clk 00:20:15]} {[%emt 00:00:02]} 4. Nbc3 {[%clk
00:20:17]} {[%emt 00:00:04]} d5 {[%clk 00:20:19]} {[%emt 00:00:02]} 5. exd5
{[%clk 00:19:11]} {[%emt 00:01:11]} exd5 {[%clk 00:20:23]} {[%emt 00:00:01]} 6.
cxd5 {[%clk 00:19:14]} {[%emt 00:00:02]} Nxd5 {[%clk 00:20:27]} 7. d4 {[%clk
00:19:10]} {[%emt 00:00:14]} Nxc3 {[%clk 00:20:26]} {[%emt 00:00:12]} 8. bxc3
{[%clk 00:19:09]} {[%emt 00:00:06]} Nc6 {[%clk 00:20:29]} {[%emt 00:00:02]} 9.
Ba3 {[%clk 00:18:04]} {[%emt 00:01:10]} cxd4 {[%clk 00:20:16]} {[%emt
00:00:17]} 10. Bxf8 {[%clk 00:17:53]} {[%emt 00:00:15]} Rxf8 {[%clk 00:20:21]}
11. Nxd4 {[%clk 00:17:12]} {[%emt 00:00:47]} Nxd4 {[%clk 00:20:23]} {[%emt
00:00:03]} 12. Qxd4 {[%clk 00:16:55]} {[%emt 00:00:23]} Qxd4 {[%clk 00:20:25]}
{[%emt 00:00:02]} 13. cxd4 {[%clk 00:16:58]} {[%emt 00:00:02]} Bf5 {[%clk
00:20:18]} {[%emt 00:00:12]} 14. Rc1 {[%clk 00:16:08]} {[%emt 00:00:55]} Kd7
{[%clk 00:20:19]} {[%emt 00:00:04]} 15. Bb5+ {[%clk 00:16:08]} {[%emt
00:00:06]} Kd6 {[%clk 00:20:20]} {[%emt 00:00:03]} 16. O-O {[%clk 00:15:48]}
{[%emt 00:00:24]} Rac8 {[%clk 00:20:11]} {[%emt 00:00:14]} 17. Rcd1 {[%clk
00:14:15]} {[%emt 00:01:38]} Rc2 {[%clk 00:19:38]} {[%emt 00:00:39]} 18. a4
{[%clk 00:13:23]} {[%emt 00:00:57]} a6 {[%clk 00:19:28]} {[%emt 00:00:14]} 19.
Bd3 {[%clk 00:13:23]} {[%emt 00:00:05]} Bxd3 {[%clk 00:19:31]} {[%emt
00:00:03]} 20. Rxd3 {[%clk 00:13:26]} {[%emt 00:00:01]} Ra2 {[%clk 00:19:16]}
{[%emt 00:00:19]} 21. Rb3 {[%clk 00:13:12]} {[%emt 00:00:19]} Rxa4 {[%clk
00:18:38]} {[%emt 00:00:43]} 22. Rxb7 {[%clk 00:13:08]} {[%emt 00:00:10]} Rxd4
{[%clk 00:18:40]} {[%emt 00:00:03]} 23. Rb6+ {[%clk 00:13:11]} {[%emt
00:00:02]} Ke5 {[%clk 00:18:15]} {[%emt 00:00:30]} 24. Rxa6 {[%clk 00:13:05]}
{[%emt 00:00:12]} Rfd8 {[%clk 00:17:29]} {[%emt 00:00:49]} 25. Re1+ {[%clk
00:08:53]} {[%emt 00:04:19]} Re4 {[%clk 00:17:16]} {[%emt 00:00:18]} 26. Ra5+
{[%clk 00:07:54]} {[%emt 00:01:04]} Rd5 {[%clk 00:17:13]} {[%emt 00:00:08]} 27.
f4+ {[%clk 00:06:37]} {[%emt 00:01:22]} Kf6 {[%clk 00:15:37]} {[%emt 00:01:41]}
28. Ra6+ {[%clk 00:05:15]} {[%emt 00:01:28]} Re6 {[%clk 00:15:19]} {[%emt
00:00:22]} 29. Rexe6+ {[%clk 00:05:04]} {[%emt 00:00:16]} fxe6 {[%clk
00:15:22]} {[%emt 00:00:02]} 30. Kf2 {[%clk 00:05:08]} Rd3 {[%clk 00:15:05]}
{[%emt 00:00:22]} 31. g4 {[%clk 00:04:42]} {[%emt 00:00:31]} g6 {[%clk
00:14:15]} {[%emt 00:00:55]} 32. Ra7 {[%clk 00:03:58]} {[%emt 00:00:49]} h5
{[%clk 00:12:32]} {[%emt 00:01:48]} 33. g5+ {[%clk 00:02:37]} {[%emt 00:01:26]}
Kf5 {[%clk 00:12:35]} {[%emt 00:00:02]} 34. Rf7+ {[%clk 00:02:40]} {[%emt
00:00:02]} Kg4 {[%clk 00:12:39]} {[%emt 00:00:01]} 35. Rf6 {[%clk 00:02:39]}
{[%emt 00:00:06]} Rd2+ {[%clk 00:12:40]} {[%emt 00:00:04]} 36. Kg1 {[%clk
00:00:22]} {[%emt 00:02:21]} Kf3 {[%clk 00:12:13]} {[%emt 00:00:31]} 37. h4
{[%clk 00:00:25]} {[%emt 00:00:02]} Rd1+ {[%clk 00:12:16]} {[%emt 00:00:02]} 38.
Kh2 {[%clk 00:00:28]} Rd2+ {[%clk 00:11:58]} {[%emt 00:00:23]} 39. Kg1 {[%clk
00:00:24]} {[%emt 00:00:10]} Rd1+ {[%clk 00:11:47]} {[%emt 00:00:17]} 40. Kh2
{[%clk 00:00:27]} {[%emt 00:00:02]} Rd2+ {[%clk 00:11:51]} 41. Kg1 {[%clk
00:00:19]} {[%emt 00:00:13]} 1/2-1/2